Workbook

Sheet ^GDAXI
A1: Date | B1: Adj Close | C1: log_2(S(t_k)/S(t_0)) | D1: ret, excel | E1: ret, vba
A2: 1987-12-30 | B2: 1005.190002 | C2: =LOG(B2/$B$2,2) -> 0
A3: 1988-01-04 | B3: 956.48999 | C3: =LOG(B3/$B$2,2) -> -0.07164645135 | D3: =(B3-B2)/B2 -> -0.04844856386 | E3: -0.04844856386
A4: 1988-01-05 | B4: 996.099976 | C4: -0.01310577254 | D4: =(B4-B3)/B3 -> 0.04141181446 | E4: 0.04141181446
A5: 1988-01-06 | B5: 1006.01001 | C5: 0.001176433506 | D5: 0.009948834694 | E5: 0.009948834694
A6: 1988-01-07 | B6: 1014.469971 | C6: 0.01325793416 | D6: 0.0084094203 | E6: 0.0084094203
A7: 1988-01-08 | B7: 1026.689941 | C7: 0.03053232863 | D7: 0.01204566951 | E7: 0.01204566951
A8: 1988-01-11 | B8: 987.52002 | C8: -0.02558632546 | D8: -0.03815165556 | E8: -0.03815165556
A9: 1988-01-12 | B9: 986.890015 | C9: -0.02650701073 | D9: -0.0006379668131 | E9: -0.0006379668131
A10: 1988-01-13 | B10: 965.77002 | C10: -0.05771664248 | D10: -0.02140055597 | E10: -0.02140055597
A11: 1988-01-14 | B11: 974.460022 | C11: -0.04479332272 | D11: 0.008998003479 | E11: 0.008998003479
A12: 1988-01-15 | B12: 952.460022 | C12: -0.07773778266 | D12: -0.02257660602 | E12: -0.02257660602
A13: 1988-01-18 | B13: 1003.130005 | C13: -0.002959636401 | D13: 0.0531990654 | E13: 0.0531990654
A14: 1988-01-19 | B14: 980.179993 | C14: -0.0363496223 | D14: -0.02287840249 | E14: -0.02287840249
A15: 1988-01-20 | B15: 960.440002 | C15: -0.06570082912 | D15: -0.02013914908 | E15: -0.02013914908
A16: 1988-01-21 | B16: 949.23999 | C16: -0.0826234414 | D16: -0.01166133436 | E16: -0.01166133436
A17: 1988-01-22 | B17: 966.47998 | C17: -0.05665647344 | D17: 0.0181618876 | E17: 0.0181618876
A18: 1988-01-25 | B18: 962.630005 | C18: -0.06241492916 | D18: -0.003983502069 | E18: -0.003983502069
A19: 1988-01-26 | B19: 968.26001 | C19: -0.0540018106 | D19: 0.005848565878 | E19: 0.005848565878
A20: 1988-01-27 | B20: 959.669983 | C20: -0.0668579531 | D20: -0.008871611872 | E20: -0.008871611872
A21: 1988-01-28 | B21: 937.76001 | C21: -0.1001775639 | D21: -0.02283073701 | E21: -0.02283073701
A22: 1988-01-29 | B22: 936 | C22: -0.1028877919 | D22: -0.001876823474 | E22: -0.001876823474
A23: 1988-02-01 | B23: 951.5 | C23: -0.0791926652 | D23: 0.01655982906 | E23: 0.01655982906
A24: 1988-02-02 | B24: 955.669983 | C24: -0.07288381655 | D24: 0.004382535996 | E24: 0.004382535996
A25: 1988-02-03 | B25: 972.190002 | C25: -0.04815802417 | D25: 0.01728632195 | E25: 0.01728632195
A26: 1988-02-04 | B26: 990.219971 | C26: -0.02164727548 | D26: 0.01854572559 | E26: 0.01854572559
A27: 1988-02-05 | B27: 979.380005 | C27: -0.03752757938 | D27: -0.01094702825 | E27: -0.01094702825
A28: 1988-02-08 | B28: 986.950012 | C28: -0.02641930618 | D28: 0.00772938692 | E28: 0.00772938692
A29: 1988-02-09 | B29: 983.309998 | C29: -0.03175000984 | D29: -0.003688144238 | E29: -0.003688144238
A30: 1988-02-10 | B30: 997.140015 | C30: -0.01160022453 | D30: 0.01406475784 | E30: 0.01406475784
A31: 1988-02-11 | B31: 1024.689941 | C31: 0.02771920658 | D31: 0.02762894437 | E31: 0.02762894437
A32: 1988-02-12 | B32: 1033.48999 | C32: 0.04005618861 | D32: 0.008588011503 | E32: 0.008588011503
A33: 1988-02-15 | B33: 1049.349976 | C33: 0.0620276946 | D33: 0.01534604704 | E33: 0.01534604704
A34: 1988-02-16 | B34: 1055.77002 | C34: 0.07082737764 | D34: 0.006118115164 | E34: 0.006118115164
A35: 1988-02-17 | B35: 1053.27002 | C35: 0.06740711133 | D35: -0.002367939942 | E35: -0.002367939942
A36: 1988-02-18 | B36: 1051.939941 | C36: 0.06558411157 | D36: -0.001262809132 | E36: -0.001262809132
A37: 1988-02-19 | B37: 1046.780029 | C37: 0.05849007848 | D37: -0.004905139351 | E37: -0.004905139351
A38: 1988-02-22 | B38: 1059.47998 | C38: 0.0758880999 | D38: 0.01213239711 | E38: 0.01213239711
A39: 1988-02-23 | B39: 1069.030029 | C39: 0.08883415205 | D39: 0.009013902273 | E39: 0.009013902273
A40: 1988-02-24 | B40: 1069.900024 | C40: 0.09000776456 | D40: 0.0008138171767 | E40: 0.0008138171767
A41: 1988-02-25 | B41: 1091.589966 | C41: 0.1189628116 | D41: 0.02027286804 | E41: 0.02027286804
A42: 1988-02-26 | B42: 1079.400024 | C42: 0.1027613977 | D42: -0.01116714369 | E42: -0.01116714369
A43: 1988-02-29 | B43: 1083.339966 | C43: 0.1080178234 | D43: 0.003650122209 | E43: 0.003650122209
A44: 1988-03-01 | B44: 1087.319946 | C44: 0.1133082918 | D44: 0.0036738052 | E44: 0.0036738052
A45: 1988-03-02 | B45: 1080.439941 | C45: 0.1041506517 | D45: -0.006327489002 | E45: -0.006327489002
A46: 1988-03-03 | B46: 1082.23999 | C46: 0.1065522298 | D46: 0.001666033374 | E46: 0.001666033374
A47: 1988-03-04 | B47: 1075.130005 | C47: 0.09704289461 | D47: -0.006569693474 | E47: -0.006569693474
A48: 1988-03-07 | B48: 1077.369995 | C48: 0.1000455647 | D48: 0.002083459665 | E48: 0.002083459665
A49: 1988-03-08 | B49: 1079.420044 | C49: 0.1027881556 | D49: 0.001902827264 | E49: 0.001902827264
A50: 1988-03-09 | B50: 1078.619995 | C50: 0.1017184565 | D50: -0.0007411841242 | E50: -0.0007411841242
A51: 1988-03-10 | B51: 1082.540039 | C51: 0.1069521589 | D51: 0.003634314233 | E51: 0.003634314233
A52: 1988-03-11 | B52: 1073.449951 | C52: 0.09478670111 | D52: -0.008396999346 | E52: -0.008396999346
A53: 1988-03-14 | B53: 1071.890015 | C53: 0.09268865384 | D53: -0.001453198632 | E53: -0.001453198632
A54: 1988-03-15 | B54: 1088.130005 | C54: 0.1143827069 | D54: 0.01515079884 | E54: 0.01515079884
A55: 1988-03-16 | B55: 1098.76001 | C55: 0.128408082 | D55: 0.00976905788 | E55: 0.00976905788
A56: 1988-03-17 | B56: 1104.27002 | C56: 0.1356247613 | D56: 0.005014752949 | E56: 0.005014752949
A57: 1988-03-18 | B57: 1123.27002 | C57: 0.1602365484 | D57: 0.01720593664 | E57: 0.01720593664
A58: 1988-03-21 | B58: 1111.619995 | C58: 0.1451954632 | D58: -0.0103715267 | E58: -0.0103715267
A59: 1988-03-22 | B59: 1107.099976 | C59: 0.1393172829 | D59: -0.004066154819 | E59: -0.004066154819
A60: 1988-03-23 | B60: 1116.109985 | C60: 0.1510109751 | D60: 0.008138387856 | E60: 0.008138387856
A61: 1988-03-24 | B61: 1100.449951 | C61: 0.1306253054 | D61: -0.01403090574 | E61: -0.01403090574
A62: 1988-03-25 | B62: 1065.709961 | C62: 0.08434662708 | D62: -0.03156889595 | E62: -0.03156889595
A63: 1988-03-28 | B63: 1037.26001 | C63: 0.04530935309 | D63: -0.02669577281 | E63: -0.02669577281
A64: 1988-03-29 | B64: 1062.329956 | C64: 0.07976370501 | D64: 0.02416939413 | E64: 0.02416939413
A65: 1988-03-30 | B65: 1066.5 | C65: 0.08541573887 | D65: 0.003925375517 | E65: 0.003925375517
A66: 1988-03-31 | B66: 1062.329956 | C66: 0.07976370501 | D66: -0.003910027192 | E66: -0.003910027192
A67: 1988-04-05 | B67: 1063.280029 | C67: =LOG(B67/$B$2,2) -> 0.08105337311 | D67: 0.0008943294827 | E67: 0.0008943294827
A68: 1988-04-06 | B68: 1073.02002 | C68: 0.09420876679 | D68: =(B68-B67)/B67 -> 0.009160325346 | E68: 0.009160325346
A69: 1988-04-07 | B69: 1081.900024 | C69: 0.1060989622 | D69: 0.008275711389 | E69: 0.008275711389
A70: 1988-04-08 | B70: 1078.410034 | C70: 0.1014375984 | D70: -0.003225797137 | E70: -0.003225797137
A71: 1988-04-11 | B71: 1088.23999 | C71: 0.114528523 | D71: 0.009115230469 | E71: 0.009115230469
A72: 1988-04-12 | B72: 1102.329956 | C72: 0.1330878979 | D72: 0.01294748045 | E72: 0.01294748045
A73: 1988-04-13 | B73: 1094.119995 | C73: 0.1223027441 | D73: -0.007447825359 | E73: -0.007447825359
A74: 1988-04-14 | B74: 1093.119995 | C74: 0.1209835518 | D74: -0.0009139765333 | E74: -0.0009139765333
A75: 1988-04-15 | B75: 1071.22998 | C75: 0.09180001554 | D75: -0.02002526264 | E75: -0.02002526264
A76: 1988-04-18 | B76: 1075.130005 | C76: 0.09704289461 | D76: 0.003640698144 | E76: 0.003640698144
A77: 1988-04-19 | B77: 1083.449951 | C77: 0.1081642842 | D77: 0.007738548791 | E77: 0.007738548791
A78: 1988-04-20 | B78: 1075.76001 | C78: 0.09788803789 | D78: -0.007097643036 | E78: -0.007097643036
A79: 1988-04-21 | B79: 1067.5 | C79: 0.08676784303 | D79: -0.00767830178 | E79: -0.00767830178
A80: 1988-04-22 | B80: 1067.060059 | C80: 0.08617315308 | D80: -0.0004121227166 | E80: -0.0004121227166
A81: 1988-04-25 | B81: 1066.819946 | C81: 0.08584847706 | D81: -0.0002250229478 | E81: -0.0002250229478
A82: 1988-04-26 | B82: 1053.709961 | C82: 0.06800958569 | D82: -0.01228884504 | E82: -0.01228884504
A83: 1988-04-27 | B83: 1054.300049 | C83: 0.06881728305 | D83: 0.0005600098906 | E83: 0.0005600098906
A84: 1988-04-28 | B84: 1058.25 | C84: 0.07421226184 | D84: 0.003746515049 | E84: 0.003746515049
A85: 1988-04-29 | B85: 1049.170044 | C85: 0.06178029453 | D85: -0.008580161588 | E85: -0.008580161588
A86: 1988-05-02 | B86: 1052.839966 | C86: 0.06681793338 | D86: 0.003497928692 | E86: 0.003497928692
A87: 1988-05-03 | B87: 1040.949951 | C87: 0.05043247854 | D87: -0.01129327855 | E87: -0.01129327855
A88: 1988-05-04 | B88: 1047.390015 | C88: 0.05933052962 | D88: 0.006186718193 | E88: 0.006186718193
A89: 1988-05-05 | B89: 1044.660034 | C89: 0.05556529247 | D89: -0.002606460784 | E89: -0.002606460784
A90: 1988-05-06 | B90: 1037.23999 | C90: 0.04528150758 | D90: -0.007102831312 | E90: -0.007102831312
A91: 1988-05-09 | B91: 1023.619995 | C91: 0.026212007 | D91: -0.01313099681 | E91: -0.01313099681
A92: 1988-05-10 | B92: 1010.150024 | C92: 0.007101346173 | D92: -0.0131591519 | E92: -0.0131591519
A93: 1988-05-11 | B93: 994.349976 | C93: -0.01564260294 | D93: -0.01564128855 | E93: -0.01564128855
A94: 1988-05-13 | B94: 1006.969971 | C94: 0.002552434353 | D94: 0.01269170343 | E94: 0.01269170343
A95: 1988-05-16 | B95: 1049.589966 | C95: 0.06235760627 | D95: 0.04232499104 | E95: 0.04232499104
A96: 1988-05-17 | B96: 1046.359985 | C96: 0.05791104851 | D96: -0.003077374122 | E96: -0.003077374122
A97: 1988-05-18 | B97: 1043.199951 | C97: 0.05354748011 | D97: -0.003020025656 | E97: -0.003020025656
A98: 1988-05-19 | B98: 1020.320007 | C98: 0.02155347451 | D98: -0.02193246269 | E98: -0.02193246269
A99: 1988-05-20 | B99: 1031.329956 | C99: 0.03703774482 | D99: 0.01079068226 | E99: 0.01079068226
A100: 1988-05-24 | B100: 1031.920044 | C100: 0.0378629643 | D100: 0.000572162184 | E100: 0.000572162184
A101: 1988-05-25 | B101: 1043.609985 | C101: 0.05411442587 | D101: 0.01132833989 | E101: 0.01132833989
A102: 1988-05-26 | B102: 1046.619995 | C102: 0.05826949927 | D102: 0.002884228824 | E102: 0.002884228824
A103: 1988-05-27 | B103: 1054.920044 | C103: 0.06966542947 | D103: 0.007930336741 | E103: 0.007930336741
A104: 1988-05-30 | B104: 1064.609985 | C104: 0.0828567757 | D104: 0.009185474345 | E104: 0.009185474345
A105: 1988-05-31 | B105: 1075.660034 | C105: 0.09775395446 | D105: 0.01037943393 | E105: 0.01037943393
A106: 1988-06-01 | B106: 1095.430054 | C106: 0.1240291407 | D106: 0.01837943158 | E106: 0.01837943158
A107: 1988-06-03 | B107: 1102.030029 | C107: 0.1326953093 | D107: 0.006025008147 | E107: 0.006025008147
A108: 1988-06-06 | B108: 1105.910034 | C108: 0.1377658 | D108: 0.003520779741 | E108: 0.003520779741
A109: 1988-06-07 | B109: 1101.130005 | C109: 0.131516584 | D109: -0.00432225846 | E109: -0.00432225846
A110: 1988-06-08 | B110: 1097.670044 | C110: 0.1269762233 | D110: -0.003142191189 | E110: -0.003142191189
A111: 1988-06-09 | B111: 1125.660034 | C111: 0.1633029511 | D111: 0.02549945692 | E111: 0.02549945692
A112: 1988-06-10 | B112: 1115.780029 | C112: 0.1505844076 | D112: -0.008777077183 | E112: -0.008777077183
A113: 1988-06-13 | B113: 1122.26001 | C113: 0.1589387376 | D113: 0.0058075793 | E113: 0.0058075793
A114: 1988-06-14 | B114: 1117.839966 | C114: 0.1532454347 | D114: -0.00393852045 | E114: -0.00393852045
A115: 1988-06-15 | B115: 1134.02002 | C115: 0.173977883 | D115: 0.01447439212 | E115: 0.01447439212
A116: 1988-06-16 | B116: 1124.140015 | C116: 0.1613535119 | D116: -0.008712372644 | E116: -0.008712372644
A117: 1988-06-20 | B117: 1104.699951 | C117: 0.1361863437 | D117: -0.01729327641 | E117: -0.01729327641
A118: 1988-06-21 | B118: 1119.560059 | C118: 0.1554636971 | D118: 0.01345171418 | E118: 0.01345171418
A119: 1988-06-22 | B119: 1137.22998 | C119: 0.1780558106 | D119: 0.01578291478 | E119: 0.01578291478
A120: 1988-06-23 | B120: 1135.77002 | C120: 0.1762025089 | D120: -0.001283786064 | E120: -0.001283786064
A121: 1988-06-24 | B121: 1131.189941 | C121: 0.1703729695 | D121: -0.004032576067 | E121: -0.004032576067
A122: 1988-06-27 | B122: 1138.839966 | C122: 0.1800968016 | D122: 0.006762812082 | E122: 0.006762812082
A123: 1988-06-28 | B123: 1124.72998 | C123: 0.1621104606 | D123: -0.01238978822 | E123: -0.01238978822
A124: 1988-06-29 | B124: 1133.52002 | C124: 0.1733416451 | D124: 0.007815244687 | E124: 0.007815244687
A125: 1988-06-30 | B125: 1133.810059 | C125: 0.1737107469 | D125: 0.0002558746161 | E125: 0.0002558746161
A126: 1988-07-01 | B126: 1153.680054 | C126: 0.1987749551 | D126: 0.01752497682 | E126: 0.01752497682
A127: 1988-07-04 | B127: 1170.439941 | C127: 0.2195826803 | D127: 0.01452732666 | E127: 0.01452732666
A128: 1988-07-05 | B128: 1177.400024 | C128: 0.2281363354 | D128: 0.005946552878 | E128: 0.005946552878
A129: 1988-07-06 | B129: 1194.959961 | C129: 0.2494940525 | D129: 0.01491416396 | E129: 0.01491416396
A130: 1988-07-07 | B130: 1186.420044 | C130: 0.2391466499 | D130: -0.007146613509 | E130: -0.007146613509
A131: 1988-07-08 | B131: 1199.920044 | C131: =LOG(B131/$B$2,2) -> 0.255470049 | D131: 0.01137876932 | E131: 0.01137876932
A132: 1988-07-11 | B132: 1191.530029 | C132: 0.245347084 | D132: =(B132-B131)/B131 -> -0.006992145053 | E132: -0.006992145053
A133: 1988-07-12 | B133: 1182.469971 | C133: 0.2343353198 | D133: -0.007603717724 | E133: -0.007603717724
A134: 1988-07-13 | B134: 1167.73999 | C134: 0.2162508514 | D134: -0.01245695989 | E134: -0.01245695989
A135: 1988-07-14 | B135: 1185.150024 | C135: 0.2376014696 | D135: 0.01490916998 | E135: 0.01490916998
A136: 1988-07-15 | B136: 1189.589966 | C136: 0.2429961568 | D136: 0.003746312205 | E136: 0.003746312205
A137: 1988-07-18 | B137: 1188.400024 | C137: 0.2415523126 | D137: -0.001000295929 | E137: -0.001000295929
A138: 1988-07-19 | B138: 1168.579956 | C138: 0.2172882221 | D138: -0.01667794312 | E138: -0.01667794312
A139: 1988-07-20 | B139: 1169.790039 | C139: 0.2187813826 | D139: 0.001035515793 | E139: 0.001035515793
A140: 1988-07-21 | B140: 1181.050049 | C140: 0.2326018759 | D140: 0.009625667534 | E140: 0.009625667534
A141: 1988-07-22 | B141: 1156.25 | C141: 0.2019851388 | D141: -0.02099830487 | E141: -0.02099830487
A142: 1988-07-25 | B142: 1149.77002 | C142: 0.1938770916 | D142: -0.005604307027 | E142: -0.005604307027
A143: 1988-07-26 | B143: 1167.650024 | C143: 0.2161396978 | D143: 0.01555093948 | E143: 0.01555093948
A144: 1988-07-27 | B144: 1176.5 | C144: 0.2270330938 | D144: 0.007579305287 | E144: 0.007579305287
A145: 1988-07-28 | B145: 1163.27002 | C145: 0.2107177894 | D145: -0.01124520187 | E145: -0.01124520187
A146: 1988-07-29 | B146: 1178.530029 | C146: 0.2295202922 | D146: 0.01311820019 | E146: 0.01311820019
A147: 1988-08-01 | B147: 1190.670044 | C147: 0.2443054451 | D147: 0.01030098063 | E147: 0.01030098063
A148: 1988-08-02 | B148: 1187.109985 | C148: 0.2399853792 | D148: -0.002989962684 | E148: -0.002989962684
A149: 1988-08-03 | B149: 1192.420044 | C149: 0.2464243048 | D149: 0.004473097748 | E149: 0.004473097748
A150: 1988-08-04 | B150: 1182.97998 | C150: 0.2349574318 | D150: -0.007916727035 | E150: -0.007916727035
A151: 1988-08-05 | B151: 1193.869995 | C151: 0.2481775178 | D151: 0.009205578441 | E151: 0.009205578441
A152: 1988-08-08 | B152: 1202.280029 | C152: 0.2583047336 | D152: 0.007044346566 | E152: 0.007044346566
A153: 1988-08-09 | B153: 1193.459961 | C153: 0.2476819399 | D153: -0.007336117865 | E153: -0.007336117865
A154: 1988-08-10 | B154: 1174.98999 | C154: 0.2251802394 | D154: -0.01547598713 | E154: -0.01547598713
A155: 1988-08-11 | B155: 1162.76001 | C155: 0.210085133 | D155: -0.01040858229 | E155: -0.01040858229
A156: 1988-08-12 | B156: 1172.609985 | C156: 0.2222550199 | D156: 0.008471202067 | E156: 0.008471202067
A157: 1988-08-15 | B157: 1170.439941 | C157: 0.2195826803 | D157: -0.001850610201 | E157: -0.001850610201
A158: 1988-08-16 | B158: 1158.609985 | C158: 0.2049267766 | D158: -0.01010727299 | E158: -0.01010727299
A159: 1988-08-17 | B159: 1175.030029 | C159: 0.2252293999 | D159: 0.01417219272 | E159: 0.01417219272
A160: 1988-08-18 | B160: 1180.390015 | C160: 0.2317953953 | D160: 0.004561573634 | E160: 0.004561573634
A161: 1988-08-19 | B161: 1164.469971 | C161: 0.2122052094 | D161: -0.01348710494 | E161: -0.01348710494
A162: 1988-08-22 | B162: 1165.97998 | C162: 0.2140747907 | D162: 0.001296735028 | E162: 0.001296735028
A163: 1988-08-23 | B163: 1151.459961 | C163: 0.1959960193 | D163: -0.0124530603 | E163: -0.0124530603
A164: 1988-08-24 | B164: 1161.680054 | C164: 0.2087445544 | D164: 0.008875769324 | E164: 0.008875769324
A165: 1988-08-25 | B165: 1164.650024 | C165: 0.212428265 | D165: 0.002556616161 | E165: 0.002556616161
A166: 1988-08-26 | B166: 1156.579956 | C166: 0.2023967781 | D166: -0.00692917858 | E166: -0.00692917858
A167: 1988-08-29 | B167: 1150.969971 | C167: 0.195381967 | D167: -0.004850494746 | E167: -0.004850494746
A168: 1988-08-30 | B168: 1164.300049 | C168: 0.2119946729 | D168: 0.01158160364 | E168: 0.01158160364
A169: 1988-08-31 | B169: 1169.459961 | C169: 0.2183742419 | D169: 0.004431771694 | E169: 0.004431771694
A170: 1988-09-01 | B170: 1154.329956 | C170: 0.199587439 | D170: -0.01293759984 | E170: -0.01293759984
A171: 1988-09-02 | B171: 1152.920044 | C171: 0.1978242375 | D171: -0.001221411601 | E171: -0.001221411601
A172: 1988-09-05 | B172: 1173.430054 | C172: 0.2232636212 | D172: 0.01778962046 | E172: 0.01778962046
A173: 1988-09-06 | B173: 1176.77002 | C173: 0.2273641705 | D173: 0.002846327302 | E173: 0.002846327302
A174: 1988-09-07 | B174: 1182.540039 | C174: 0.234420805 | D174: 0.004903268185 | E174: 0.004903268185
A175: 1988-09-08 | B175: 1186.859985 | C175: 0.2396815221 | D175: 0.003653107597 | E175: 0.003653107597
A176: 1988-09-09 | B176: 1186.589966 | C176: 0.2393532615 | D176: -0.0002275070382 | E176: -0.0002275070382
A177: 1988-09-12 | B177: 1199.829956 | C177: 0.2553617298 | D177: 0.01115801615 | E177: 0.01115801615
A178: 1988-09-13 | B178: 1211.23999 | C178: 0.2690165161 | D178: 0.009509709224 | E178: 0.009509709224
A179: 1988-09-14 | B179: 1224.050049 | C179: 0.2841943214 | D179: 0.01057598751 | E179: 0.01057598751
A180: 1988-09-15 | B180: 1226.420044 | C180: 0.2869849542 | D180: 0.001936191255 | E180: 0.001936191255
A181: 1988-09-16 | B181: 1229.280029 | C181: 0.2903453711 | D181: 0.002331978358 | E181: 0.002331978358
A182: 1988-09-19 | B182: 1248.469971 | C182: 0.3126928942 | D182: 0.01561071647 | E182: 0.01561071647
A183: 1988-09-20 | B183: 1243.040039 | C183: 0.3064045403 | D183: -0.004349269206 | E183: -0.004349269206
A184: 1988-09-21 | B184: 1257.800049 | C184: 0.3234343701 | D184: 0.01187412274 | E184: 0.01187412274
A185: 1988-09-22 | B185: 1250.069946 | C185: 0.3145405944 | D185: -0.006145732786 | E185: -0.006145732786
A186: 1988-09-23 | B186: 1250.439941 | C186: 0.3149675393 | D186: 0.0002959794379 | E186: 0.0002959794379
A187: 1988-09-26 | B187: 1254.930054 | C187: 0.3201387282 | D187: 0.003590826599 | E187: 0.003590826599
A188: 1988-09-27 | B188: 1252.540039 | C188: 0.3173884949 | D188: -0.001904500567 | E188: -0.001904500567
A189: 1988-09-28 | B189: 1239.900024 | C189: 0.3027555707 | D189: -0.01009150575 | E189: -0.01009150575
A190: 1988-09-29 | B190: 1248.01001 | C190: 0.312161279 | D190: 0.006540838651 | E190: 0.006540838651
A191: 1988-09-30 | B191: 1253.680054 | C191: 0.3187009846 | D191: 0.004543268046 | E191: 0.004543268046
A192: 1988-10-03 | B192: 1243.280029 | C192: 0.3066830502 | D192: -0.008295597403 | E192: -0.008295597403
A193: 1988-10-04 | B193: 1245.26001 | C193: 0.3089787813 | D193: 0.001592546292 | E193: 0.001592546292
A194: 1988-10-05 | B194: 1252.26001 | C194: 0.3170659171 | D194: 0.005621315985 | E194: 0.005621315985
A195: 1988-10-06 | B195: 1257.579956 | C195: =LOG(B195/$B$2,2) -> 0.3231819016 | D195: 0.004248275883 | E195: 0.004248275883
A196: 1988-10-07 | B196: 1265.060059 | C196: 0.331737652 | D196: =(B196-B195)/B195 -> 0.005948013853 | E196: 0.005948013853
A197: 1988-10-10 | B197: 1283.670044 | C197: 0.3528061913 | D197: 0.01471075216 | E197: 0.01471075216
A198: 1988-10-11 | B198: 1275.52002 | C198: 0.3436173162 | D198: -0.006349002252 | E198: -0.006349002252
A199: 1988-10-12 | B199: 1263 | C199: 0.3293864123 | D199: -0.009815620142 | E199: -0.009815620142
A200: 1988-10-13 | B200: 1269.27002 | C200: 0.3365307888 | D200: 0.004964386382 | E200: 0.004964386382
... 8248 more rows

Sheet Histogramm der Returns
A1: ret, vba | D1: Bins | E1: abs Haeufigkeit
A2: -0.04844856386 | D2: -0.1 | E2: =FREQUENCY(A2:A8447,D2:D202) -> 2
A3: 0.04141181446 | D3: -0.099 | E3: 0
A4: 0.009948834694 | D4: -0.098 | E4: 0
A5: 0.0084094203 | D5: -0.097 | E5: 0
A6: 0.01204566951 | D6: -0.096 | E6: 0
A7: -0.03815165556 | D7: -0.095 | E7: 0
A8: -0.0006379668131 | D8: -0.094 | E8: 0
A9: -0.02140055597 | D9: -0.093 | E9: 0
A10: 0.008998003479 | D10: -0.092 | E10: 0
A11: -0.02257660602 | D11: -0.091 | E11: 1
A12: 0.0531990654 | D12: -0.09 | E12: 0
A13: -0.02287840249 | D13: -0.089 | E13: 0
A14: -0.02013914908 | D14: -0.088 | E14: 0
A15: -0.01166133436 | D15: -0.087 | E15: 0
A16: 0.0181618876 | D16: -0.086 | E16: 0
A17: -0.003983502069 | D17: -0.085 | E17: 0
A18: 0.005848565878 | D18: -0.084 | E18: 1
A19: -0.008871611872 | D19: -0.083 | E19: 0
A20: -0.02283073701 | D20: -0.082 | E20: 0
A21: -0.001876823474 | D21: -0.081 | E21: 0
A22: 0.01655982906 | D22: -0.08 | E22: 0
A23: 0.004382535996 | D23: -0.079 | E23: 1
A24: 0.01728632195 | D24: -0.078 | E24: 0
A25: 0.01854572559 | D25: -0.077 | E25: 0
A26: -0.01094702825 | D26: -0.076 | E26: 0
A27: 0.00772938692 | D27: -0.075 | E27: 1
A28: -0.003688144238 | D28: -0.074 | E28: 0
A29: 0.01406475784 | D29: -0.073 | E29: 0
A30: 0.02762894437 | D30: -0.072 | E30: 0
A31: 0.008588011503 | D31: -0.071 | E31: 1
A32: 0.01534604704 | D32: -0.07 | E32: 2
A33: 0.006118115164 | D33: -0.069 | E33: 0
A34: -0.002367939942 | D34: -0.068 | E34: 2
A35: -0.001262809132 | D35: -0.067 | E35: 0
A36: -0.004905139351 | D36: -0.066 | E36: 0
A37: 0.01213239711 | D37: -0.065 | E37: 0
A38: 0.009013902273 | D38: -0.064 | E38: 1
A39: 0.0008138171767 | D39: -0.063 | E39: 0
A40: 0.02027286804 | D40: -0.062 | E40: 1
A41: -0.01116714369 | D41: -0.061 | E41: 1
A42: 0.003650122209 | D42: -0.06 | E42: 0
A43: 0.0036738052 | D43: -0.059 | E43: 0
A44: -0.006327489002 | D44: -0.058 | E44: 5
A45: 0.001666033374 | D45: -0.057 | E45: 1
A46: -0.006569693474 | D46: -0.056 | E46: 1
A47: 0.002083459665 | D47: -0.055 | E47: 2
A48: 0.001902827264 | D48: -0.054 | E48: 0
A49: -0.0007411841242 | D49: -0.053 | E49: 3
A50: 0.003634314233 | D50: -0.052 | E50: 3
A51: -0.008396999346 | D51: -0.051 | E51: 5
A52: -0.001453198632 | D52: -0.05 | E52: 4
A53: 0.01515079884 | D53: -0.049 | E53: 11
A54: 0.00976905788 | D54: -0.048 | E54: 3
A55: 0.005014752949 | D55: -0.047 | E55: 3
A56: 0.01720593664 | D56: -0.046 | E56: 3
A57: -0.0103715267 | D57: -0.045 | E57: 1
A58: -0.004066154819 | D58: -0.044 | E58: 7
A59: 0.008138387856 | D59: -0.043 | E59: 5
A60: -0.01403090574 | D60: -0.042 | E60: 4
A61: -0.03156889595 | D61: -0.041 | E61: 5
A62: -0.02669577281 | D62: -0.04 | E62: 5
A63: 0.02416939413 | D63: -0.039 | E63: 6
A64: 0.003925375517 | D64: -0.038 | E64: 8
A65: -0.003910027192 | D65: -0.037 | E65: 6
A66: 0.0008943294827 | D66: -0.036 | E66: 5
A67: 0.009160325346 | D67: -0.035 | E67: 9
A68: 0.008275711389 | D68: -0.034 | E68: 15
A69: -0.003225797137 | D69: -0.033 | E69: 14
A70: 0.009115230469 | D70: -0.032 | E70: 14
A71: 0.01294748045 | D71: -0.031 | E71: 9
A72: -0.007447825359 | D72: -0.03 | E72: 15
A73: -0.0009139765333 | D73: -0.029 | E73: 15
A74: -0.02002526264 | D74: -0.028 | E74: 18
A75: 0.003640698144 | D75: -0.027 | E75: 31
A76: 0.007738548791 | D76: -0.026 | E76: 23
A77: -0.007097643036 | D77: -0.025 | E77: 27
A78: -0.00767830178 | D78: -0.024 | E78: 39
A79: -0.0004121227166 | D79: -0.023 | E79: 33
A80: -0.0002250229478 | D80: -0.022 | E80: 38
A81: -0.01228884504 | D81: -0.021 | E81: 41
A82: 0.0005600098906 | D82: -0.02 | E82: 50
A83: 0.003746515049 | D83: -0.019 | E83: 58
A84: -0.008580161588 | D84: -0.018 | E84: 56
A85: 0.003497928692 | D85: -0.017 | E85: 75
A86: -0.01129327855 | D86: -0.016 | E86: 78
A87: 0.006186718193 | D87: -0.015 | E87: 82
A88: -0.002606460784 | D88: -0.014 | E88: 111
A89: -0.007102831312 | D89: -0.013 | E89: 102
A90: -0.01313099681 | D90: -0.012 | E90: 130
A91: -0.0131591519 | D91: -0.011 | E91: 123
A92: -0.01564128855 | D92: -0.01 | E92: 127
A93: 0.01269170343 | D93: -0.009 | E93: 157
A94: 0.04232499104 | D94: -0.008 | E94: 165
A95: -0.003077374122 | D95: -0.007 | E95: 199
A96: -0.003020025656 | D96: -0.006 | E96: 206
A97: -0.02193246269 | D97: -0.005 | E97: 225
A98: 0.01079068226 | D98: -0.004 | E98: 271
A99: 0.000572162184 | D99: -0.003 | E99: 292
A100: 0.01132833989 | D100: -0.002 | E100: 310
A101: 0.002884228824 | D101: -0.001 | E101: 333
A102: 0.007930336741 | D102: 0 | E102: 346
A103: 0.009185474345 | D103: 0.001 | E103: 344
A104: 0.01037943393 | D104: 0.002 | E104: 391
A105: 0.01837943158 | D105: 0.003 | E105: 368
A106: 0.006025008147 | D106: 0.004 | E106: 337
A107: 0.003520779741 | D107: 0.005 | E107: 287
A108: -0.00432225846 | D108: 0.006 | E108: 281
A109: -0.003142191189 | D109: 0.007 | E109: 254
A110: 0.02549945692 | D110: 0.008 | E110: 225
A111: -0.008777077183 | D111: 0.009 | E111: 217
A112: 0.0058075793 | D112: 0.01 | E112: 213
A113: -0.00393852045 | D113: 0.011 | E113: 171
A114: 0.01447439212 | D114: 0.012 | E114: 141
A115: -0.008712372644 | D115: 0.013 | E115: 139
A116: -0.01729327641 | D116: 0.014 | E116: 126
A117: 0.01345171418 | D117: 0.015 | E117: 122
A118: 0.01578291478 | D118: 0.016 | E118: 95
A119: -0.001283786064 | D119: 0.017 | E119: 90
A120: -0.004032576067 | D120: 0.018 | E120: 84
A121: 0.006762812082 | D121: 0.019 | E121: 65
A122: -0.01238978822 | D122: 0.02 | E122: 60
A123: 0.007815244687 | D123: 0.021 | E123: 45
A124: 0.0002558746161 | D124: 0.022 | E124: 54
A125: 0.01752497682 | D125: 0.023 | E125: 47
A126: 0.01452732666 | D126: 0.024 | E126: 30
A127: 0.005946552878 | D127: 0.025 | E127: 41
A128: 0.01491416396 | D128: 0.026 | E128: 21
A129: -0.007146613509 | D129: 0.027 | E129: 29
A130: 0.01137876932 | D130: 0.028 | E130: 19
A131: -0.006992145053 | D131: 0.029 | E131: 22
A132: -0.007603717724 | D132: 0.03 | E132: 14
A133: -0.01245695989 | D133: 0.031 | E133: 19
A134: 0.01490916998 | D134: 0.032 | E134: 19
A135: 0.003746312205 | D135: 0.033 | E135: 12
A136: -0.001000295929 | D136: 0.034 | E136: 14
A137: -0.01667794312 | D137: 0.035 | E137: 11
A138: 0.001035515793 | D138: 0.036 | E138: 7
A139: 0.009625667534 | D139: 0.037 | E139: 2
A140: -0.02099830487 | D140: 0.038 | E140: 3
A141: -0.005604307027 | D141: 0.039 | E141: 8
A142: 0.01555093948 | D142: 0.04 | E142: 7
A143: 0.007579305287 | D143: 0.041 | E143: 3
A144: -0.01124520187 | D144: 0.042 | E144: 3
A145: 0.01311820019 | D145: 0.043 | E145: 3
A146: 0.01030098063 | D146: 0.044 | E146: 3
A147: -0.002989962684 | D147: 0.045 | E147: 2
A148: 0.004473097748 | D148: 0.046 | E148: 2
A149: -0.007916727035 | D149: 0.047 | E149: 2
A150: 0.009205578441 | D150: 0.048 | E150: 1
A151: 0.007044346566 | D151: 0.049 | E151: 1
A152: -0.007336117865 | D152: 0.05 | E152: 6
A153: -0.01547598713 | D153: 0.051 | E153: 0
A154: -0.01040858229 | D154: 0.052 | E154: 2
A155: 0.008471202067 | D155: 0.053 | E155: 6
A156: -0.001850610201 | D156: 0.054 | E156: 3
A157: -0.01010727299 | D157: 0.055 | E157: 2
A158: 0.01417219272 | D158: 0.056 | E158: 1
A159: 0.004561573634 | D159: 0.057 | E159: 4
A160: -0.01348710494 | D160: 0.058 | E160: 1
A161: 0.001296735028 | D161: 0.059 | E161: 2
A162: -0.0124530603 | D162: 0.06 | E162: 2
A163: 0.008875769324 | D163: 0.061 | E163: 1
A164: 0.002556616161 | D164: 0.062 | E164: 1
A165: -0.00692917858 | D165: 0.063 | E165: 0
A166: -0.004850494746 | D166: 0.064 | E166: 0
A167: 0.01158160364 | D167: 0.065 | E167: 0
A168: 0.004431771694 | D168: 0.066 | E168: 1
A169: -0.01293759984 | D169: 0.067 | E169: 1
A170: -0.001221411601 | D170: 0.068 | E170: 0
A171: 0.01778962046 | D171: 0.069 | E171: 1
A172: 0.002846327302 | D172: 0.07 | E172: 1
A173: 0.004903268185 | D173: 0.071 | E173: 1
A174: 0.003653107597 | D174: 0.072 | E174: 0
A175: -0.0002275070382 | D175: 0.073 | E175: 1
A176: 0.01115801615 | D176: 0.074 | E176: 1
A177: 0.009509709224 | D177: 0.075 | E177: 0
A178: 0.01057598751 | D178: 0.076 | E178: 1
A179: 0.001936191255 | D179: 0.077 | E179: 1
A180: 0.002331978358 | D180: 0.078 | E180: 0
A181: 0.01561071647 | D181: 0.079 | E181: 1
A182: -0.004349269206 | D182: 0.08 | E182: 0
A183: 0.01187412274 | D183: 0.081 | E183: 0
A184: -0.006145732786 | D184: 0.082 | E184: 0
A185: 0.0002959794379 | D185: 0.083 | E185: 0
A186: 0.003590826599 | D186: 0.084 | E186: 0
A187: -0.001904500567 | D187: 0.085 | E187: 0
A188: -0.01009150575 | D188: 0.086 | E188: 0
A189: 0.006540838651 | D189: 0.087 | E189: 0
A190: 0.004543268046 | D190: 0.088 | E190: 0
A191: -0.008295597403 | D191: 0.089 | E191: 0
A192: 0.001592546292 | D192: 0.09 | E192: 0
A193: 0.005621315985 | D193: 0.091 | E193: 0
A194: 0.004248275883 | D194: 0.092 | E194: 0
A195: 0.005948013853 | D195: 0.093 | E195: 0
A196: 0.01471075216 | D196: 0.094 | E196: 0
A197: -0.006349002252 | D197: 0.095 | E197: 0
A198: -0.009815620142 | D198: 0.096 | E198: 0
A199: 0.004964386382 | D199: 0.097 | E199: 0
A200: 0.01200689354 | D200: 0.098 | E200: 0
... 8247 more rows
